Cogmind - Beta 16.1 @@@ ROGUE MODE // 2026.04.02 @ 19:29:00 Player: obl-vn Result: Self-destructed Performance ------------- Evolutions (6) 3000 Regions Visited (16) 3200 Robots Destroyed (216) 1080 Value Destroyed (11122) 11122 Prototype IDs (14) 280 Alien Tech Used (0) 0 Bonus (8262) 8262 TOTAL SCORE: 26944 Bonus ------- High Alert Combat Kills 2223 Follower Combat Kills 2502 Entered Garrisons 1200 Used RIF Installer 2500 Friendly Fire -163 Cogmind --------- Core Integrity 917/1150 Matter 300/300 Energy 368/368 System Corruption 3% Temperature Cool (0) Movement Hovering (149) Ox1 Location -4/Garrison Parts ------- > --- POWER (2) -------- Antimatter-Quantum Reactor > --- PROPULSION (6) --- Hovering Antigrav Exoskeleton > --- UTILITY (7) ------ Armored Scrap Engine Improved Coolant Injector Huge Storage Unit Advanced Thermal Shield Relay Coupler [NC] (35) Relay Coupler [Sentry] (7) > --- WEAPON (4) ------- Great Axe Great Axe Great Axe Power Sword > --- INVENTORY (25) --- Light Nuclear Core Advanced Heat Sink Advanced Cooling System Large Storage Unit Matter Compressor (250) Advanced Reaction Control System Relay Coupler [Sentry] (32) Relay Coupler [Sentry] (32) Relay Coupler [Sentry] (32) Relay Coupler [Sentry] (32) Relay Coupler [Sentry] (33) Relay Coupler [Proto] (15) Relay Coupler [Proto] (15) Relay Coupler [Proto] (15) Relay Coupler [Proto] (15) High-powered Tractor Beam Long-range Tractor Beam HERF Cannon KE Penetrator Improved Remote Datajack Improved Remote Datajack Improved Remote Datajack Phasing Sabre Phasing Sabre Phasing Sabre Peak State ------------ > --- POWER ------------ Antimatter-Quantum Reactor > --- PROPULSION ------- Hovering Antigrav Exoskeleton Improved Gyrokinetic Inverter > --- UTILITY ---------- Armored Scrap Engine Improved Coolant Injector Huge Storage Unit Phase Shifter Improved Remote Force Field Relay Coupler [Sentry] > --- WEAPON ----------- Great Axe Great Axe Great Axe Great Axe > --- INVENTORY -------- Light Nuclear Core Advanced Heat Sink Advanced Cooling System Large Storage Unit Matter Compressor Advanced Targeting Computer Advanced Reaction Control System Relay Coupler [Sentry] Relay Coupler [Sentry] Relay Coupler [Proto] Relay Coupler [Proto] Relay Coupler [Proto] Relay Coupler [Proto] High-powered Tractor Beam Improved Remote Datajack Improved Remote Datajack Phasing Sabre Phasing Sabre Phasing Sabre [Rating: 114] Favorites ----------- Power Constructs Engine Cooled Ion Engine Power Core Light Fission Core Reactor Constructs Propulsion Light Treads Treads Light Treads Hover Unit Constructs Flight Unit VTOL Module Utility Large Storage Unit Device Armored Scrap Engine Storage Large Storage Unit Processor Core Analyzer Hackware Relay Coupler [NC] Protection Propulsion Shielding Weapon Light Assault Rifle Energy Gun Small Laser Ballistic Gun Light Assault Rifle Ballistic Cannon Light Cannon Launcher Rocket Array Special Weapon Remote Datajack Slashing Weapon Great Axe Special Melee Weapon Datajack Build | -11 -10 -9 -9 -9 -9 -7 -7 -7 -7 -6 -6 -5 -5 -5 -4 -4 ------- Run | Yrd Mat Mat Sto Gar Rec Fac Gar Fac Gar Fac Gar Fac Gar Ext Fac Gar Slots Evolved 12 | . . 2 . . . 4 . . . 2 . 2 . . 2 . Power 1 | . . . . . . . . . . . . 1 . . . . Propulsion 4 | . . 1 . . . 1 . . . . . . . . 2 . Utility 5 | . . . . . . 2 . . . 2 . 1 . . . . Weapon 2 | . . 1 . . . 1 . . . . . . . . . . Parts Attached 126 | 7 5 4 22 8 6 11 5 3 9 5 7 5 8 8 7 6 Power 11 | 1 . . 3 . 1 . . . . 1 2 1 2 . . . Engine 8 | 1 . . 2 . 1 . . . . . 2 1 1 . . . Core 3 | . . . 1 . . . . . . 1 . . 1 . . . Reactor . | . . . . . . . . . . . . . . . . . Propulsion 20 | 2 . 1 5 4 1 3 1 1 . . . . . . 1 1 Treads 18 | 2 . 1 5 4 1 3 1 1 . . . . . . . . Leg . | . . . . . . . . . . . . . . . . . Wheel . | . . . . . . . . . . . . . . . . . Hover 1 | . . . . . . . . . . . . . . . 1 . Flight 1 | . . . . . . . . . . . . . . . . 1 Utility 54 | 2 3 1 6 2 1 3 3 2 6 4 4 2 6 4 2 3 Device 22 | 1 1 . 5 1 1 2 1 1 . 1 . 1 2 3 1 1 Storage 3 | 1 1 . . 1 . . . . . . . . . . . . Processor 3 | . . 1 . . . . . . . 1 . . . . . 1 Hackware 25 | . . . 1 . . 1 2 1 6 2 4 1 4 1 1 1 Protection 1 | . 1 . . . . . . . . . . . . . . . Artifact . | . . . . . . . . . . . . . . . . . Weapon 41 | 2 2 2 8 2 3 5 1 . 3 . 1 2 . 4 4 2 Energy Gun 9 | 2 . 1 6 . . . . . . . . . . . . . Energy Cannon . | . . . . . . . . . . . . . . . . . Ballistic Gun 10 | . 1 . 2 . 2 2 . . 2 . 1 . . . . . Ballistic Cannon 3 | . 1 1 . . 1 . . . . . . . . . . . Launcher 2 | . . . . 1 . 1 . . . . . . . . . . Special Weapon 7 | . . . . . . 2 1 . 1 . . 2 . . . 1 Impact Weapon . | . . . . . . . . . . . . . . . . . Slashing Weapon 9 | . . . . . . . . . . . . . . 4 4 1 Piercing Weapon . | . . . . . . . . . . . . . . . . . Special Melee Weapon 1 | . . . . 1 . . . . . . . . . . . . Unidentified Prototypes 6 | . . . 4 . . 2 . . . . . . . . . . Parts Lost 33 | . 1 . . 3 1 1 . . 2 2 6 . 8 5 2 2 Power 6 | . . . . . . . . . . 1 2 . 2 . . 1 Propulsion 3 | . . . . 2 . . . . . . . . 1 . . . Utility 7 | . 1 . . . . . . . . . . . 1 3 2 . Weapon 17 | . . . . 1 1 1 . . 2 1 4 . 4 2 . 1 Highest Loss Streak 4 | . 1 . . 2 1 1 . . 1 2 4 . 3 2 1 1 To Critical Strikes 1 | . . . . . . . . . . 1 . . . . . . Average Backups 17 | 1 10 13 14 22 24 15 14 14 14 14 14 14 14 14 19 23 Power . | . 1 1 1 2 2 . . . . . . . . 1 1 1 Propulsion 1 | . 2 3 3 3 2 . . . . . . . . . . . Utility 10 | . 2 4 3 9 12 10 10 11 11 11 12 13 12 12 13 15 Weapon 2 | . 2 3 4 5 6 3 1 1 1 1 . . . . 3 5 Tool/Special . | . . . . . . . . . . . . . . . . . Unused Backups 44 | . 2 . 3 1 1 8 2 1 3 1 1 . 3 . . 18 Power 4 | . . . 1 . . 2 . . . . . . . . . 1 Propulsion . | . . . . . . . . . . . . . . . . . Utility 29 | . 1 . . . 1 4 2 1 3 1 1 . 2 . . 13 Weapon 9 | . 1 . 2 1 . 2 . . . . . . 1 . . 2 Tool/Special 2 | . . . . . . . . . . . . . . . . 2 Average Slot Usage (%) 80 | . 98 98 99 99 99 83 70 65 66 68 64 72 69 64 61 62 Engine 7 | . 14 11 8 11 11 6 7 7 7 3 4 10 3 . . . Treads 16 | . 28 31 33 33 33 27 12 5 1 6 2 3 5 4 . . Leg 1 | . . . . . . . 1 . 3 . 4 1 . . 2 3 Device 11 | . 8 . 8 11 11 13 10 8 7 6 7 12 11 20 20 15 Storage 8 | . 14 11 11 11 11 7 7 7 7 6 6 5 5 5 5 5 Processor 1 | . . . . . . . . . . 4 6 5 3 . . 1 Hackware 4 | . . . . . . 1 3 5 6 11 10 6 10 5 4 8 Energy Gun 2 | . 13 11 9 . . 2 4 1 2 . . . . . . . Ballistic Gun 12 | . 8 11 12 15 25 22 8 18 19 17 8 11 12 1 . . Ballistic Cannon 4 | . 5 11 11 16 6 . . . . . . . . . . . Special Weapon 1 | . . . . . . . . 1 7 5 4 5 4 . . 2 Slashing Weapon 3 | . . . . . . . . . . . . . . 16 20 18 Peak Build Rating 114 | 7 8 10 22 20 20 45 54 63 77 83 81 89 101 111 114 108 Average Rating 51 | 4 7 9 13 18 17 38 48 53 69 79 72 85 92 103 105 104 On Entrance 50 | . 7 8 10 17 18 20 41 48 62 75 81 75 89 97 107 98 Avg Prop Armor Cover (%) 6 | . . . . . . 5 6 5 . . . . . . . . Naked Turns . | . . . . . . . . . . . . . . . . . Heaviest Build 141 | 14 30 31 38 99 98 93 40 47 48 44 52 60 66 141 141 131 Greatest Support 186 | 40 40 60 60 60 60 80 63 63 104 97 97 130 130 186 186 81 Greatest Overweight (x) 1 | . . . . 1 1 1 1 . . . . . . . 1 1 Average Overweight (x) . | . . . . . 1 . . . . . . . . . . 1 Largest Inventory Capacity 25 | 8 15 15 15 25 25 25 15 15 25 15 15 15 15 25 25 25 Average Capacity 18 | 7 13 15 15 24 25 17 15 15 15 15 15 15 15 15 25 25 Most Carried 25 | 5 15 14 15 25 25 23 15 15 15 15 15 15 15 15 24 25 Average Carried 17 | 2 10 12 14 22 24 15 14 14 14 14 14 14 14 14 19 23 Final Capacity 25 | 8 15 15 15 25 25 15 15 15 15 15 15 15 15 25 25 25 Final Carried 25 | 2 15 13 14 25 25 14 15 14 14 14 15 14 14 15 23 25 Scrap Engine Consumption 214 | . . . . . . 22 26 12 29 18 22 9 29 19 18 10 Constructs Created 16 | . . . . . . 3 2 1 1 1 4 . 3 1 . . Constructs Modified 71 | . . . . . . 4 8 2 12 6 4 2 9 10 9 5 Class Distribution -------------------- 31% | Bothacker-Construct 14% | Botlord-Mutant 13% | Bothacker-Gunner 13% | Scavenger-Gunner 8% | Mutant 5% | Botlord-Construct 4% | Gunner 4% | Bothacker-Mutant Dominant Class ---------------- Mutant | -10/Materials Tank | -9/Materials Scavenger-Gunner | -9/Storage Scavenger-Gunner | -9/Garrison Bothacker-Gunner | -9/Recycling Scavenger-Gunner | -7/Factory Bothacker-Construct | -7/Garrison Bothacker-Construct | -7/Factory Bothacker-Construct | -7/Garrison Bothacker-Construct | -6/Factory Bothacker-Construct | -6/Garrison Bothacker-Construct | -5/Factory Bothacker-Construct | -5/Garrison Botlord-Mutant | -5/Extension Botlord-Mutant | -4/Factory Botlord-Mutant | -4/Garrison Resources | -11 -10 -9 -9 -9 -9 -7 -7 -7 -7 -6 -6 -5 -5 -5 -4 -4 ----------- Run | Yrd Mat Mat Sto Gar Rec Fac Gar Fac Gar Fac Gar Fac Gar Ext Fac Gar Matter Collected 6838 | 221 221 . 645 987 261 329 628 137 1182 422 592 135 464 414 60 140 Remotely 59 | . . . . . . . . . . . . . . 49 10 . Salvage Created 8957 | 20 445 . 918 696 306 391 663 167 978 651 1099 170 584 611 702 556 Parts 472 | 2 38 . 68 56 16 15 27 10 52 35 39 16 24 21 24 29 Haulers Intercepted 8 | . 2 . 3 . . . . 2 . . . . . . 1 . Recyclers Shooed 2 | . . . . . . 1 . . . 1 . . . . . . Parts Field Recycled . | . . . . . . . . . . . . . . . . . Retrieved Matter . | . . . . . . . . . . . . . . . . . Parts Self-Destructed . | . . . . . . . . . . . . . . . . . Prevented . | . . . . . . . . . . . . . . . . . Parts Restored . | . . . . . . . . . . . . . . . . . Kills | -11 -10 -9 -9 -9 -9 -7 -7 -7 -7 -6 -6 -5 -5 -5 -4 -4 ------- Run | Yrd Mat Mat Sto Gar Rec Fac Gar Fac Gar Fac Gar Fac Gar Ext Fac Gar Combat Hostiles Destroyed 185 | . 12 . 19 33 5 8 14 2 16 11 20 6 16 4 8 11 Melee 25 | . . . . . . . . . . . . . 2 4 8 11 Guns 94 | . 10 . 13 11 3 8 4 2 12 7 6 5 13 . . . Cannons 28 | . 2 . 6 10 2 . 4 . . 1 1 1 1 . . . AOE 38 | . . . . 12 . . 6 . 4 3 13 . . . . . Classes Destroyed 19 | 1 5 . 1 2 2 1 1 . 1 3 . . 2 . . . Worker 2 | . . . . . . . . . . 2 . . . . . . Builder 1 | . . . . . . . . . . 1 . . . . . . Tunneler 3 | 1 2 . . . . . . . . . . . . . . . Hauler 8 | . 2 . 3 . . . . 2 . . . . . . 1 . Recycler 4 | . . . . . 1 . . . . 1 . . . 2 . . Operator 4 | . 1 . 1 . . . . . . 1 . . . . 1 . Watcher 4 | . 1 . 1 . . . . . 1 . . . . 1 . . Swarmer 57 | . 8 . 3 16 . . . . 6 3 4 5 8 . . 4 Cutter 1 | . . . . . . . . . . . . . 1 . . . Grunt 70 | . 4 . 9 12 1 4 9 2 3 2 11 . 7 . 4 2 Brawler 2 | . . . . . . . . . . 1 1 . . . . . Duelist 4 | . . . . 2 . . 1 . . 1 . . . . . . Sentry 25 | . . . 7 2 2 2 2 . 3 1 2 . . 1 2 1 Demolisher 2 | . . . . . . 2 . . . . . . . . . . Specialist 3 | . . . . . . . . . . 1 2 . . . . . Hunter 9 | . . . . . . . 2 . 2 2 1 . . 2 . . Programmer 12 | . . . . 1 1 1 . . 2 . . 1 . . 2 4 Behemoth 1 | . . . . . . . . . . . . . 1 . . . Scrapper 1 | . . . . . 1 . . . . . . . . . . . Thug 1 | . . . . . . . . . . . . . . 1 . . Guerrilla 1 | . . . . . . . . . . . . . . 1 . . Infiltrator 1 | . . . . . . . . . 1 . . . . . . . Best Kill Streak 7 | 1 6 . 7 4 3 2 6 2 4 5 7 3 5 2 2 4 Combat Bots Only 7 | . 6 . 7 4 2 2 6 1 4 3 7 3 5 2 2 4 Max Kills in Single Turn 4 | 1 1 . 2 4 1 1 2 2 4 2 4 2 2 1 1 1 Gunslinging 1 | . . . . . . . . . . . . . 1 . . . Exploded 4 | . . . . 4 . . 2 . 4 2 4 . . . . . Melee 1 | . . . . . . . . . . . . . 1 1 1 1 Uniques/NPCs Destroyed . | . . . . . . . . . . . . . . . . . Combat | -11 -10 -9 -9 -9 -9 -7 -7 -7 -7 -6 -6 -5 -5 -5 -4 -4 -------- Run | Yrd Mat Mat Sto Gar Rec Fac Gar Fac Gar Fac Gar Fac Gar Ext Fac Gar Hostile Shots Fired 1408 | . 76 . 50 130 20 89 87 2 199 63 174 33 193 76 106 110 Missed 433 | . 25 . 9 49 2 19 29 . 80 18 46 13 52 28 26 37 Hits 975 | . 51 . 41 81 18 70 58 2 119 45 128 20 141 48 80 73 Melee 9 | . . . . . . . . . . . . . 7 2 . . Projectile 966 | . 51 . 41 81 18 70 58 2 119 45 128 20 134 46 80 73 AOE 6 | . . . . . . 4 . . . . . . 2 . . . Critical Strikes 34 | . . . 4 . 1 2 . 1 2 2 4 2 6 3 6 1 Damage Taken 14887 | . 487 . 607 831 305 901 546 87 1403 1050 2215 412 2814 1086 911 1232 Core 1523 | . 69 . 71 72 52 87 58 . 85 77 254 20 311 134 121 112 Absorbed by Shields 650 | . . . . 24 . . . . . . . . . 60 566 . Redirected to Shielding 32 | . 3 . 29 . . . . . . . . . . . . . Ignored by Resistances 137 | . . . . . . . . . . . . . . . . 137 Regen/Repaired (Parts) 5960 | . 47 74 . . . 662 286 . 813 781 840 153 302 940 522 540 Core Remaining (%) 67 | 100 72 . . . 51 . . . 67 . 61 . . 53 . . Volleys Fired 660 | 2 44 . 55 61 21 35 105 9 102 46 73 21 69 15 . 2 Largest 4 | 2 2 . 3 3 3 4 3 3 3 3 3 3 3 2 . 1 Hottest 197 | 90 90 . 109 83 73 107 171 86 138 131 147 147 197 155 . 7 Shots Fired 1379 | 4 88 . 142 143 48 131 158 25 215 99 118 45 142 19 . 2 Gun 1054 | 4 75 . 92 67 40 130 117 24 199 85 68 34 106 13 . . Cannon 238 | . 13 . 50 68 8 . 29 . . 6 22 10 28 4 . . Launcher 22 | . . . . 8 . . 6 . 1 2 5 . . . . . Special 65 | . . . . . . 1 6 1 15 6 23 1 8 2 . 2 Kinetic 1027 | . 37 . 104 135 48 104 98 24 177 91 76 34 99 . . . Thermal 203 | 4 51 . 38 . . 13 48 . 17 . . . 15 17 . . Explosive 22 | . . . . 8 . . 6 . 1 2 5 . . . . . Electromagnetic 62 | . . . . . . 13 . . 5 . 14 10 20 . . . Robot Hit Streak 45 | 1 11 . 24 27 22 16 45 4 7 9 8 4 15 7 . 9 Robot Miss Streak 6 | 2 2 . 2 3 2 6 2 4 4 3 3 6 6 3 . . Penetration Max 1 | . . . . . . . . . 1 . . . 1 . . . Secondary Targets 5 | . . . . 1 . . . . 1 1 . . 2 . . . Max Gunslinging Chain 1 | . . . . 1 . . . . 1 1 . . 1 . . . Shots Hit Robots 916 | 1 57 . 90 75 45 104 93 16 108 58 69 18 80 29 45 28 Core Hits 515 | 1 28 . 41 39 15 42 98 11 53 37 78 9 23 9 18 13 Critical Kills 2 | . . . . . . . . . . . 1 . . 1 . . Critical Parts Destroyed 5 | . . . . 1 1 1 . . 1 . 1 . . . . . Critical Strikes 21 | . 1 . 1 2 1 1 . . 1 . 2 . . 5 5 2 Burn 2 | . 1 . 1 . . . . . . . . . . . . . Meltdown 1 | . . . . . . . . . . . . . . 1 . . Destroy 6 | . . . . 1 1 1 . . 1 . 2 . . . . . Blast 1 | . . . . 1 . . . . . . . . . . . . Sever 11 | . . . . . . . . . . . . . . 4 5 2 Melee Attacks 133 | . . . . 3 8 . . . . . . . . 26 56 40 Impact . | . . . . . . . . . . . . . . . . . Slashing 122 | . . . . . . . . . . . . . . 26 56 40 Piercing . | . . . . . . . . . . . . . . . . . Sneak Attacks 18 | . . . . 3 8 . . . . . . . . 4 1 2 Combat Hostiles . | . . . . . . . . . . . . . . . . . Follow-up Attacks 28 | . . . . . . . . . . . . . . 5 14 9 Damage Inflicted 21007 | 12 689 . 1242 1756 502 991 2396 271 2673 1493 2386 434 1964 1330 1809 1059 Guns 10589 | 12 518 . 757 621 341 991 980 271 2448 983 762 342 1206 357 . . Cannons 3171 | . 170 . 480 521 152 . 489 . . 109 384 92 696 78 . . Explosions 3392 | . . . . 607 . . 919 . 225 401 1240 . . . . . Melee 3763 | . . . . . . . . . . . . . . 895 1809 1059 Ramming 92 | . 1 . 5 7 9 . 8 . . . . . 62 . . . Kinetic 10884 | . 285 . 933 1142 493 690 920 271 2176 1092 934 342 1606 . . . Thermal 2369 | 12 403 . 304 . . 197 549 . 263 59 . . 147 435 . . Explosive 3333 | . . . . 607 . . 919 . 225 342 1240 . . . . . Electromagnetic 566 | . . . . . . 104 . . 9 . 212 92 149 . . . Impact . | . . . . . . . . . . . . . . . . . Slashing 3763 | . . . . . . . . . . . . . . 895 1809 1059 Piercing . | . . . . . . . . . . . . . . . . . Highest Corruption 5 | . . . 1 2 2 1 1 2 5 . 1 2 2 3 3 3 Average Corruption 2 | . . . 1 1 2 1 1 1 4 . 1 1 2 2 2 1 Corruption Purged 3 | . . . . . . . . . . . . . . . 2 1 Corruption Blocked . | . . . . . . . . . . . . . . . . . Effects 133 | . . . . 23 23 3 8 1 32 . 1 6 10 16 3 7 Message Errors 35 | . . . . 5 7 1 4 1 7 . . 1 2 4 . 3 Matter Fused 33 | . . . . 5 7 . 3 . 9 . . 2 1 4 1 1 Heat Flow Errors 16 | . . . . 4 2 . . . 7 . . . 1 2 . . Energy Discharges 14 | . . . . 2 1 1 1 . 1 . 1 1 1 2 2 1 Parts Rejected 2 | . . . . 1 1 . . . . . . . . . . . Parts Fused 1 | . . . . . 1 . . . . . . . . . . . Data Loss (minor) 13 | . . . . 3 2 . . . 1 . . 1 3 3 . . Data Loss (major) 2 | . . . . . . . . . 1 . . . 1 . . . Misfires 5 | . . . . . 1 . . . 4 . . . . . . . Alerts 5 | . . . . 2 . . . . . . . . . 1 . 2 Weapon Failures 7 | . . . . 1 1 1 . . 2 . . 1 1 . . . Overload Shots 5 | . . . . . . . . . 5 . . . . . . . Overflow Damage 215 | . . . 3 . . . . . . 63 13 . 24 14 57 41 Projectiles 40 | . . . 3 . . . . . . . 13 . 24 . . . Explosions 63 | . . . . . . . . . . 63 . . . . . . Melee 112 | . . . . . . . . . . . . . . 14 57 41 Knockbacks 16 | . 3 . 3 7 . . . . . 1 1 . 1 . . . Impact . | . . . . . . . . . . . . . . . . . Kinetic 14 | . 2 . 2 7 . . . . . 1 1 . 1 . . . Secondary 2 | . 1 . 1 . . . . . . . . . . . . . Self-Inflicted Damage 234 | . . . . . . . 30 . . 106 98 . . . . . Shots 9 | . . . . . . . 2 . . 2 5 . . . . . Rammed 9 | . 1 . 1 1 1 . 2 . . . . . 3 . . . Targets Rammed 11 | . 1 . 1 1 1 . 2 . . . . . 5 . . . Kicked . | . . . . . . . . . . . . . . . . . Crushed 2 | . . . . . . . . . . . . . 2 . . . Highest Temperature 427 | 60 180 . 75 276 253 70 279 24 225 201 300 . 427 235 . . Average Temperature 72 | 30 39 . 20 100 115 20 95 21 49 62 79 . 143 54 . . Received Heat Transfer 3260 | . 108 . 267 163 105 261 189 27 273 141 558 27 441 438 124 138 Effects 2 | . . . . . . . . . . . . . 2 . . . Energy Bleed 2 | . . . . . . . . . . . . . 2 . . . Siege Activations . | . . . . . . . . . . . . . . . . . Martial Activations . | . . . . . . . . . . . . . . . . . Shielding Activations . | . . . . . . . . . . . . . . . . . Robots Disrupted . | . . . . . . . . . . . . . . . . . Combat Hostiles . | . . . . . . . . . . . . . . . . . Robots Corrupted . | . . . . . . . . . . . . . . . . . Combat Hostiles . | . . . . . . . . . . . . . . . . . Parts Fried 1 | . . . . . . . . . . . 1 . . . . . Impact Corruptions . | . . . . . . . . . . . . . . . . . Robots Melted 1 | . . . . . . . . . . . . . . 1 . . Combat Hostiles . | . . . . . . . . . . . . . . . . . Parts Melted 5 | . 2 . . . . . . . . . 1 . . 2 . . Heat Transferred 3018 | 37 1188 . 772 . . . . . 311 50 . . 216 444 . . Parts Sabotaged . | . . . . . . . . . . . . . . . . . Parts Stolen . | . . . . . . . . . . . . . . . . . Parts Stripped . | . . . . . . . . . . . . . . . . . Power Chain Reactions . | . . . . . . . . . . . . . . . . . Alert | -11 -10 -9 -9 -9 -9 -7 -7 -7 -7 -6 -6 -5 -5 -5 -4 -4 ------- Run | Yrd Mat Mat Sto Gar Rec Fac Gar Fac Gar Fac Gar Fac Gar Ext Fac Gar Maximum Alert Level 4 | . . . 1 4 2 . 3 2 4 3 4 3 4 3 1 2 Low Security (%) 25 | 100 100 100 55 3 32 100 33 . . . . . . . . 16 Level 1 20 | . . . 44 13 41 . 13 11 7 . . . . . 100 54 Level 2 16 | . . . . 27 26 . 36 88 24 10 4 . 2 . . 29 Level 3 26 | . . . . 35 . . 16 . 47 89 29 100 43 99 . . Level 4 11 | . . . . 21 . . . . 20 . 65 . 53 . . . Level 5 . | . . . . . . . . . . . . . . . . . High Security . | . . . . . . . . . . . . . . . . . Max Security . | . . . . . . . . . . . . . . . . . Peak Influence 1434 | 5 120 7 263 1423 640 111 889 468 1389 1062 1411 1000 1434 873 366 504 Initial 752 | . . 4 . 143 640 94 63 466 297 728 686 740 665 752 341 181 Average 544 | . 28 1 174 800 302 36 422 422 841 936 1103 833 1112 799 302 348 Influence Increases 9418 | 5 350 3 594 1370 113 295 866 183 1232 725 825 591 969 608 336 353 Destroy 0b10 Robot/C 5020 | . 240 . 380 780 80 160 420 100 580 380 440 300 500 280 160 220 Destroy 0b10 Robot/NC 185 | 5 30 . 25 . 5 . 5 15 20 30 10 5 . 25 10 . Destroy Leader 662 | . 56 . 128 30 . 70 50 14 40 80 20 40 40 32 42 20 Allied During Kill 779 | . . . . 21 4 . 56 40 100 66 48 215 68 153 . 8 Successful Hack 141 | . 9 3 10 16 9 . . 12 21 . 14 12 14 21 . . Disable Machine 195 | . 15 . 15 . 15 . 15 . 15 105 . . . 15 . . Anti-Garrison Action 1200 | . . . . 400 . . 200 . 300 . 150 . 100 . . 50 Destroy Structure 541 | . . . 6 48 . . 120 2 111 64 83 4 52 22 4 25 Advance Influence 50 | . . . . . . 50 . . . . . . . . . . Partial Spotted 15 | . . . . . . . . . . . 15 . . . . . Lose Combat Pursuer 630 | . . . 30 75 . 15 . . 45 . 45 15 195 60 120 30 Influence Decreases 8924 | 5 338 15 373 168 1431 309 68 647 268 1133 395 1051 486 1344 775 118 Entered New Map 4539 | . . 8 . 78 783 61 28 423 128 661 295 671 286 682 357 78 Time Decay 3125 | 5 328 7 373 . 618 238 . 214 . 362 . 190 . 392 398 . Lost Part 330 | . 10 . . 30 10 10 . . 20 20 60 . 80 50 20 20 Lost Ally 780 | . . . . 60 20 . 40 10 120 90 40 40 120 220 . 20 Purge Threat 150 | . . . . . . . . . . . . 150 . . . . Squads Dispatched 26 | . 2 . 5 . . 5 . 1 . 7 . 3 . 1 2 . Investigation 2 | . . . 1 . . 1 . . . . . . . . . . Extermination 4 | . . . . . . 1 . 1 . 1 . . . . 1 . Reinforcement 12 | . 2 . 2 . . . . . . 4 . 3 . . 1 . Assault 3 | . . . . . . . . . . 2 . . . 1 . . Garrison 5 | . . . 2 . . 3 . . . . . . . . . . Intercept . | . . . . . . . . . . . . . . . . . Searches Triggered . | . . . . . . . . . . . . . . . . . Construction Impeded 1 | . . . 1 . . . . . . . . . . . . . Haulers Reinforced 1 | . . . . . . . . . . 1 . . . . . . Active Scanning Responses . | . . . . . . . . . . . . . . . . . Cargo Convoy Interrupts . | . . . . . . . . . . . . . . . . . Stealth | -11 -10 -9 -9 -9 -9 -7 -7 -7 -7 -6 -6 -5 -5 -5 -4 -4 --------- Run | Yrd Mat Mat Sto Gar Rec Fac Gar Fac Gar Fac Gar Fac Gar Ext Fac Gar Distress Signals 11 | . 2 . 1 . . 1 . . 3 1 . . . . 3 . Communications Jammed . | . . . . . . . . . . . . . . . . . Distress Signals . | . . . . . . . . . . . . . . . . . Times Spotted 355 | . 23 . 25 40 7 10 24 5 41 23 29 18 50 21 22 17 Peak Tracking Total 12 | . 6 . 4 5 2 3 3 1 6 5 9 5 12 5 5 3 Tactical Retreats 28 | . . . 1 4 . 1 . . 3 . 2 1 8 2 4 2 Traps | -11 -10 -9 -9 -9 -9 -7 -7 -7 -7 -6 -6 -5 -5 -5 -4 -4 ------- Run | Yrd Mat Mat Sto Gar Rec Fac Gar Fac Gar Fac Gar Fac Gar Ext Fac Gar Traps Triggered 33 | . . . 2 15 . 3 6 . 2 . 1 . 1 1 . 2 Indirectly . | . . . . . . . . . . . . . . . . . Trap Hack Attempts . | . . . . . . . . . . . . . . . . . Triggered . | . . . . . . . . . . . . . . . . . Disarmed . | . . . . . . . . . . . . . . . . . Reprogrammed . | . . . . . . . . . . . . . . . . . Reused . | . . . . . . . . . . . . . . . . . Traps Extracted . | . . . . . . . . . . . . . . . . . Installed . | . . . . . . . . . . . . . . . . . Triggered . | . . . . . . . . . . . . . . . . . Machines | -11 -10 -9 -9 -9 -9 -7 -7 -7 -7 -6 -6 -5 -5 -5 -4 -4 ---------- Run | Yrd Mat Mat Sto Gar Rec Fac Gar Fac Gar Fac Gar Fac Gar Ext Fac Gar Machines Disabled 32 | . 1 . 1 4 3 . 3 . 5 7 3 . 3 1 . 1 Max in Single Turn 4 | . 1 . 1 1 . . 1 . 1 4 1 . 1 1 . 1 Garrison Relay 16 | . . . . 4 . . 2 . 4 . 3 . 2 . . 1 Machines Repaired . | . . . . . . . . . . . . . . . . . Machines Dismantled . | . . . . . . . . . . . . . . . . . Machines Sabotaged . | . . . . . . . . . . . . . . . . . Overloaded Fab Kills . | . . . . . . . . . . . . . . . . . Hacking | -11 -10 -9 -9 -9 -9 -7 -7 -7 -7 -6 -6 -5 -5 -5 -4 -4 --------- Run | Yrd Mat Mat Sto Gar Rec Fac Gar Fac Gar Fac Gar Fac Gar Ext Fac Gar Machines Accessed 44 | . 6 1 5 3 7 2 2 2 3 1 1 3 1 4 3 . Terminals 30 | . 5 . 4 3 6 . 2 . 3 . 1 1 1 4 . . Fabricators 1 | . . . . . . 1 . . . . . . . . . . Repair Stations 3 | . 1 1 . . . . . . . . . 1 . . . . Recycling Units . | . . . . . . . . . . . . . . . . . Scanalyzers 3 | . . . . . . . . 1 . . . . . . 2 . Garrison Access 6 | . . . 1 . . 1 . 1 . 1 . 1 . . 1 . Total Hacks 80 | . 19 2 8 3 18 3 2 2 4 1 2 5 1 7 3 . Successful 54 | . 10 2 7 1 13 3 2 2 2 1 1 3 1 3 3 . Failed 26 | . 9 . 1 2 5 . . . 2 . 1 2 . 4 . . Catastrophic 5 | . . . . 2 1 . . . 1 . . . . 1 . . Database Lockouts . | . . . . . . . . . . . . . . . . . Manual 28 | . 14 . 4 . 10 . . . . . . . . . . . Terminals 60 | . 16 . 7 3 16 . 2 . 4 . 2 2 1 7 . . Fabricators 2 | . . . . . . 2 . . . . . . . . . . Repair Stations 7 | . 3 2 . . . . . . . . . 2 . . . . Recycling Units . | . . . . . . . . . . . . . . . . . Scanalyzers 3 | . . . . . . . . 1 . . . . . . 2 . Garrison Access 6 | . . . 1 . . 1 . 1 . 1 . 1 . . 1 . Terminal Hacks 21 | . 1 . 4 1 5 . 2 . 2 . 1 1 1 3 . . Record 1 | . . . . . 1 . . . . . . . . . . . Robot Schematic 1 | . . . 1 . . . . . . . . . . . . . Prototype ID Bank 1 | . . . . . 1 . . . . . . . . . . . Open Door 8 | . . . 3 . . . 1 . 1 . . . . 3 . . Emergency Access Points 4 | . . . . . . . 1 . 1 . 1 . 1 . . . Unreport Threat 1 | . . . . . . . . . . . . 1 . . . . Locate Traps 1 | . 1 . . . . . . . . . . . . . . . Zone Layout 1 | . . . . . 1 . . . . . . . . . . . Security Stations 1 | . . . . 1 . . . . . . . . . . . . Release Object 2 | . . . . . 2 . . . . . . . . . . . Fabricator Hacks 2 | . . . . . . 2 . . . . . . . . . . Load Schematic 1 | . . . . . . 1 . . . . . . . . . . Build 1 | . . . . . . 1 . . . . . . . . . . Repair Station Hacks 5 | . 2 2 . . . . . . . . . 1 . . . . Scan Component 3 | . 1 1 . . . . . . . . . 1 . . . . Repair 2 | . 1 1 . . . . . . . . . . . . . . Recycling Unit Hacks . | . . . . . . . . . . . . . . . . . Scanalyzer 3 | . . . . . . . . 1 . . . . . . 2 . Retrieve Study 3 | . . . . . . . . 1 . . . . . . 2 . Garrison Access Hacks 6 | . . . 1 . . 1 . 1 . 1 . 1 . . 1 . Unlock Access 6 | . . . 1 . . 1 . 1 . 1 . 1 . . 1 . Unauthorized Hacks 17 | . 7 . 2 . 8 . . . . . . . . . . . Terminals 17 | . 7 . 2 . 8 . . . . . . . . . . . Assimilate 1 | . 1 . . . . . . . . . . . . . . . Botnet 5 | . 2 . 1 . 2 . . . . . . . . . . . Skim 11 | . 4 . 1 . 6 . . . . . . . . . . . Fabricators . | . . . . . . . . . . . . . . . . . Repair Stations . | . . . . . . . . . . . . . . . . . Recycling Units . | . . . . . . . . . . . . . . . . . Scanalyzers . | . . . . . . . . . . . . . . . . . Garrison Access . | . . . . . . . . . . . . . . . . . Data Cores Recovered 1 | . . . . . . . . . . . . 1 . . . . Used . | . . . . . . . . . . . . . . . . . Hacking Detections 25 | . 5 1 1 3 5 1 . 1 2 . 1 2 . 1 2 . Full Trace Events 3 | . 1 . . . 1 1 . . . . . . . . . . Feedback Events . | . . . . . . . . . . . . . . . . . Feedback Blocked . | . . . . . . . . . . . . . . . . . Robot Schematics Acquired 1 | . . . 1 . . . . . . . . . . . . . Robots Built 1 | . . . . . . 1 . . . . . . . . . . Authchips . | . . . . . . . . . . . . . . . . . Time 81 | . . . . . . 81 . . . . . . . . . . Total Robot Build Rating 1 | . . . . . . 1 . . . . . . . . . . Part Schematics Acquired . | . . . . . . . . . . . . . . . . . Parts Built . | . . . . . . . . . . . . . . . . . Authchips . | . . . . . . . . . . . . . . . . . Time . | . . . . . . . . . . . . . . . . . Total Part Build Rating . | . . . . . . . . . . . . . . . . . Part Studies Acquired 3 | . . . . . . . . 1 . . . . . . 2 . Parts Repaired 2 | . 1 1 . . . . . . . . . . . . . . Time 52 | . 26 26 . . . . . . . . . . . . . . Parts Recycled . | . . . . . . . . . . . . . . . . . Recycled Matter . | . . . . . . . . . . . . . . . . . Retrieved Matter . | . . . . . . . . . . . . . . . . . Retrieved Components . | . . . . . . . . . . . . . . . . . Parts Scanalyzed . | . . . . . . . . . . . . . . . . . Part Schematics Acquired . | . . . . . . . . . . . . . . . . . Parts Damaged . | . . . . . . . . . . . . . . . . . Bothacking | -11 -10 -9 -9 -9 -9 -7 -7 -7 -7 -6 -6 -5 -5 -5 -4 -4 ------------ Run | Yrd Mat Mat Sto Gar Rec Fac Gar Fac Gar Fac Gar Fac Gar Ext Fac Gar Used RIF Installer 5 | . . . . 1 . . 1 . 1 . 1 . 1 . . . Coupler Efficiency 1 | . . . . . . . . . 1 . . . . . . . Watcher Feeds 1 | . . . . . . . 1 . . . . . . . . . Program Shield 1 | . . . . . . . . . . . . . 1 . . . Autooverride 1 | . . . . . . . . . . . 1 . . . . . Robots Hacked 37 | . . . . . . 1 2 1 8 6 8 1 7 1 . 2 Non-combat 4 | . . . . . . 1 1 . 1 1 . . . . . . Combat 33 | . . . . . . . 1 1 7 5 8 1 7 1 . 2 Autooverrided 1 | . . . . . . . . . . . . . 1 . . . Robot Hacks Applied 39 | . . . . . . 1 2 1 8 6 9 1 8 1 . 2 parse_system 2 | . . . . . . . . . . 1 1 . . . . . focus_fire 1 | . . . . . . . . . . . 1 . . . . . overload_power 5 | . . . . . . . . . 2 . 1 . 2 . . . amplify_resonance 10 | . . . . . . . 1 . 2 4 1 . 2 . . . overwrite_iff 13 | . . . . . . . . . 2 1 4 . 4 1 . 1 formatsys_low 3 | . . . . . . 1 1 . 1 . . . . . . . formatsys_high 5 | . . . . . . . . 1 1 . 1 1 . . . 1 Relay Couplers Released 73 | . . . . 21 . . 7 3 17 . 13 . 7 . . 5 Machine Destruction 66 | . . . . 17 . . 7 . 17 . 13 . 7 . . 5 Programmers 7 | . . . . 4 . . . 3 . . . . . . . . Attached 24 | . . . . . . 1 2 1 6 2 4 1 4 1 1 1 Fabnet Peak Effective % . | . . . . . . . . . . . . . . . . . Robots Rewired 30 | . . . . 3 4 . 3 . 4 . 6 . . 10 . . Allies Hacked 2 | . . . . . . . . 1 1 . . . . . . . Hacks Repelled . | . . . . . . . . . . . . . . . . . Allies | -11 -10 -9 -9 -9 -9 -7 -7 -7 -7 -6 -6 -5 -5 -5 -4 -4 -------- Run | Yrd Mat Mat Sto Gar Rec Fac Gar Fac Gar Fac Gar Fac Gar Ext Fac Gar Total Allies 59 | . . . . 3 4 2 6 1 8 1 11 1 5 15 . 2 Largest Group 12 | . . . . 3 4 2 5 4 4 4 7 8 4 12 . 1 Highest-Rated Group 372 | . . . . 24 97 55 218 262 262 117 297 346 204 372 . 49 Highest-Rated Ally 90 | . . . . 8 34 34 80 90 90 39 46 49 85 49 . 49 Total Orders 21 | . . . . 2 3 4 8 3 1 . . . . . . . STAY 7 | . . . . 1 2 1 1 2 . . . . . . . . ROAM 1 | . . . . . . . 1 . . . . . . . . . FOLLOW 4 | . . . . 1 1 . 1 1 . . . . . . . . AID 9 | . . . . . . 3 5 . 1 . . . . . . . Ally Attacks 386 | . . . . 31 8 . 28 14 38 51 14 43 50 104 . 5 Total Damage 8938 | . . . . 242 321 . 854 473 1583 898 287 934 1168 1964 . 214 Kills 78 | . . . . 6 4 . 7 4 14 9 2 10 9 13 . . Allies Corrupted 2 | . . . . . . . . 1 1 . . . . . . . Allies Melted . | . . . . . . . . . . . . . . . . . Intel | -11 -10 -9 -9 -9 -9 -7 -7 -7 -7 -6 -6 -5 -5 -5 -4 -4 ------- Run | Yrd Mat Mat Sto Gar Rec Fac Gar Fac Gar Fac Gar Fac Gar Ext Fac Gar Active Infowar (turns) 811 | 4 807 . . . . . . . . . . . . . . . Seismic 811 | 4 807 . . . . . . . . . . . . . . . Robot Analysis Total . | . . . . . . . . . . . . . . . . . Derelict Logs Recovered . | . . . . . . . . . . . . . . . . . Drone Launches . | . . . . . . . . . . . . . . . . . Drone Recoveries . | . . . . . . . . . . . . . . . . . Exploration | -11 -10 -9 -9 -9 -9 -7 -7 -7 -7 -6 -6 -5 -5 -5 -4 -4 ------------- Run | Yrd Mat Mat Sto Gar Rec Fac Gar Fac Gar Fac Gar Fac Gar Ext Fac Gar Turns Passed 16153 | 84 1306 72 918 2055 2068 852 1253 451 1212 829 1167 389 745 936 941 875 Spaces Moved 8359 | 50 672 25 397 708 809 343 612 353 772 670 856 323 542 536 385 306 Core 16 | 16 . . . . . . . . . . . . . . . . Treads 5690 | 34 672 25 397 708 809 343 146 . 203 669 352 256 542 453 72 9 Legs 1309 | . . . . . . . . . 316 1 504 67 . 44 202 175 Wheels 569 | . . . . . . . 303 107 159 . . . . . . . Hover 775 | . . . . . . . 163 246 94 . . . . 39 111 122 Flight . | . . . . . . . . . . . . . . . . . Fastest Speed 50 | 50 160 160 160 160 240 160 114 94 69 88 88 86 86 86 137 149 Average Speed 145 | 124 160 160 160 236 240 180 134 107 97 88 93 95 86 112 198 210 Slowest Speed 246 | 160 160 160 160 240 240 240 240 114 116 88 130 130 86 170 246 246 Overloaded Moves . | . . . . . . . . . . . . . . . . . Propulsion Burnouts . | . . . . . . . . . . . . . . . . . Robots Hopped . | . . . . . . . . . . . . . . . . . Potential Cave-ins . | . . . . . . . . . . . . . . . . . Cave-ins Triggered . | . . . . . . . . . . . . . . . . . Exploration Rate (%) 47 | 3 85 4 72 70 97 7 90 14 87 22 75 13 75 51 11 28 Regions Visited 16 Branch Regions 3 Pre-discovered Areas 3 | . . . 1 . 2 . . . . . . . . . . . Known Exits Taken 7 | . . 1 1 . . 1 . 1 . 1 . 1 . . 1 . Unknown Exits Taken 4 | 1 1 . . . 1 . . . . . . . . 1 . . Scrap Searched . | . . . . . . . . . . . . . . . . . Spaces Dug 27 | . . . . 16 . . 3 . . 4 . . . 2 2 . Terrain Destroyed 232 | . . . . 67 . . 21 . 10 67 51 . 9 5 2 . Melee 4 | . . . . . . . . . . . . . . 2 2 . Projectile 35 | . . . . . . . 7 . 6 10 . . 9 3 . . AOE 193 | . . . . 67 . . 14 . 4 57 51 . . . . . Terrain Rammed . | . . . . . . . . . . . . . . . . . Walls Destroyed . | . . . . . . . . . . . . . . . . . Machines Disabled . | . . . . . . . . . . . . . . . . . Actions | -11 -10 -9 -9 -9 -9 -7 -7 -7 -7 -6 -6 -5 -5 -5 -4 -4 --------- Run | Yrd Mat Mat Sto Gar Rec Fac Gar Fac Gar Fac Gar Fac Gar Ext Fac Gar Total 11114 | 67 822 56 584 970 895 517 896 407 1069 837 1131 369 705 822 485 482 Wait 1357 | 1 74 25 74 117 42 88 99 34 148 106 177 15 63 129 41 124 Move 8346 | 49 671 24 397 707 808 343 611 352 771 669 855 323 540 535 385 306 Hop . | . . . . . . . . . . . . . . . . . Pick Up 129 | 8 19 2 7 18 4 6 9 3 9 5 8 1 11 2 11 6 Fast Attach 36 | 1 1 . 7 4 1 8 . . 2 1 1 2 . 7 . 1 Attach 55 | 6 3 3 . 3 2 9 3 2 1 5 4 1 5 1 3 4 Detach 18 | . 2 . . . . 5 5 . . 1 2 1 . 1 . 1 Swap 87 | . 2 2 17 12 4 5 6 2 10 2 5 2 6 2 4 6 Drop 106 | . 5 . 26 9 4 18 12 4 7 2 2 3 6 3 2 3 Fire 660 | 2 44 . 55 61 21 35 105 9 102 46 73 21 69 15 . 2 Melee 96 | . . . . 3 8 . . . . . . . . 17 39 29 Ram . | . . . . . . . . . . . . . . . . . Kick . | . . . . . . . . . . . . . . . . . Crush 11 | . 1 . 1 1 1 . 2 . . . . . 5 . . . Escape Stasis 69 | . . . . 29 . . 27 . 5 . 4 . . 4 . . Rewire 144 | . . . . 6 . . 17 1 14 . . . . 106 . . Trap . | . . . . . . . . . . . . . . . . . Miscellaneous . | . . . . . . . . . . . . . . . . . Route ------- -11/Scrapyard -10/Materials (discovered 4 exits: *Mat x3 / [*Min]) -9/Materials -9/Storage (discovered 2 exits: [*Mat] / Gar) -9/Garrison (discovered 3 exits: *Rec x3) -9/Recycling -7/Factory -7/Garrison (discovered 3 exits: *Fac x3) -7/Factory (discovered 2 exits: *Fac / Gar) -7/Garrison (discovered 3 exits: *Fac x3) -6/Factory (discovered 2 exits: [*Low] / Gar) -6/Garrison (discovered 3 exits: *Fac x3) -5/Factory (discovered 2 exits: *Fac / Gar) -5/Garrison (discovered 3 exits: *Ext x3) -5/Extension -4/Factory -4/Garrison History --------- Turn | Location | Event 39 | -11/Scrapyard | Discovered new exit (range 15) 85 | -11/Scrapyard | Entered Materials 305 | -10/Materials | Build established: Mutant 481 | -10/Materials | Discovered new exit (range 9) 551 | -10/Materials | Discovered new exit (range 7) 682 | -10/Materials | Discovered new exit (range 6) 939 | -10/Materials | Repaired Lgt. Treads 1105 | -10/Materials | Discovered new exit (range 4) 1391 | -10/Materials | Entered another Materials area 1391 | -9/Materials | Evolved 2 slots: Propulsion x1, Weapon x1 1392 | -9/Materials | Discovered new exit (range 15) 1434 | -9/Materials | Repaired Lgt. Cannon 1461 | -9/Materials | Identified exit to Storage 1463 | -9/Materials | Entered Storage 1655 | -9/Storage | Destroyed 7 combat bots 1727 | -9/Storage | Learned location of Armory (-3) 1870 | -9/Storage | Garrison activated, responded to threat 1927 | -9/Storage | Build established: Scavenger-Gunner 2157 | -9/Storage | Discovered new exit (range 16) 2356 | -9/Storage | Garrison activated, responded to threat 2381 | -9/Storage | Identified exit to Garrison 2381 | -9/Storage | Entered Garrison 2405 | -9/Garrison | Triggered checkpoint 2443 | -9/Garrison | Garrison Relay disabled 2602 | -9/Garrison | Triggered checkpoint 2710 | -9/Garrison | Triggered checkpoint 2877 | -9/Garrison | Triggered checkpoint 2955 | -9/Garrison | Garrison Relay disabled 3035 | -9/Garrison | Discovered new exit (range 15) 3211 | -9/Garrison | Triggered checkpoint 3248 | -9/Garrison | Discovered new exit (range 13) 3529 | -9/Garrison | Triggered checkpoint 3567 | -9/Garrison | Garrison Relay disabled 3712 | -9/Garrison | Triggered checkpoint 3804 | -9/Garrison | Spotted B-75 Beast 3834 | -9/Garrison | Build established: Gunner 3876 | -9/Garrison | Learned Recycling security intel 4045 | -9/Garrison | Triggered checkpoint 4098 | -9/Garrison | Garrison Relay disabled 4151 | -9/Garrison | Triggered checkpoint 4312 | -9/Garrison | Installed Relay Interface Framework 4415 | -9/Garrison | Discovered new exit (range 10) 4436 | -9/Garrison | Entered Recycling 4888 | -9/Recycling | Build established: Bothacker-Gunner 5509 | -9/Recycling | Discovered new exit (range 16) 6082 | -9/Recycling | Learned Storage garrison access intel 6156 | -9/Recycling | Learned location of 2 exits from Materials 6181 | -9/Recycling | Learned location of Zion (-6) 6293 | -9/Recycling | Scanned before Scraplab entrance 6394 | -9/Recycling | Entered Scraplab 6401 | -9/Recycling | Angered Scraplab inhabitants 6401 | -9/Recycling | Found Prototype Device 6504 | -9/Recycling | Entered Factory 6504 | -7/Factory | Accompanied by 2 allies 6504 | -7/Factory | Evolved 4 slots: Propulsion x1, Utility x2, Weapon x1 6504 | -7/Factory | Identified Scrap Engine 7048 | -7/Factory | Garrison activated, responded to threat 7116 | -7/Factory | Found Prototype Launcher 7116 | -7/Factory | Identified Rocket Array 7209 | -7/Factory | Fabricated M-13 Machinist? 7354 | -7/Factory | Identified exit to Garrison 7356 | -7/Factory | Entered Garrison 7356 | -7/Garrison | Accompanied by 1 ally 7524 | -7/Garrison | Triggered checkpoint 7604 | -7/Garrison | Garrison Relay disabled 7680 | -7/Garrison | Build established: Bothacker-Construct 7768 | -7/Garrison | Triggered checkpoint 7785 | -7/Garrison | Triggered checkpoint 7785 | -7/Garrison | Triggered checkpoint 7834 | -7/Garrison | Discovered new exit (range 10) 7922 | -7/Garrison | Triggered checkpoint 7988 | -7/Garrison | Found embedded Infiltrators 8002 | -7/Garrison | Garrison Relay disabled 8138 | -7/Garrison | Triggered checkpoint 8271 | -7/Garrison | Discovered new exit (range 15) 8424 | -7/Garrison | Triggered checkpoint 8549 | -7/Garrison | Expanded RIF knowledge: Watcher Feeds 8569 | -7/Garrison | Discovered new exit (range 3) 8609 | -7/Garrison | Entered Factory 8609 | -7/Factory | Accompanied by 4 allies 8716 | -7/Factory | Discovered new exit (range 16) 8989 | -7/Factory | Identified exit to Garrison 9060 | -7/Factory | Entered Garrison 9060 | -7/Garrison | Accompanied by 4 allies 9108 | -7/Garrison | Triggered checkpoint 9121 | -7/Garrison | Garrison Relay disabled 9148 | -7/Garrison | Triggered checkpoint 9225 | -7/Garrison | Lost 3 allies 9251 | -7/Garrison | Triggered checkpoint 9366 | -7/Garrison | Discovered new exit (range 14) 9397 | -7/Garrison | Triggered checkpoint 9429 | -7/Garrison | Garrison Relay disabled 9466 | -7/Garrison | Garrison Relay disabled 9503 | -7/Garrison | Expanded RIF knowledge: Coupler Efficiency 9699 | -7/Garrison | Discovered new exit (range 12) 9934 | -7/Garrison | Triggered checkpoint 9994 | -7/Garrison | Triggered checkpoint 9998 | -7/Garrison | Garrison Relay disabled 10165 | -7/Garrison | Discovered new exit (range 9) 10272 | -7/Garrison | Entered Factory 10272 | -6/Factory | Accompanied by 4 allies 10272 | -6/Factory | Evolved 2 slots: Utility x2 10651 | -6/Factory | Discovered new exit (range 15) 10972 | -6/Factory | First assault squad dispatched 11097 | -6/Factory | Identified exit to Garrison 11101 | -6/Factory | Entered Garrison 11157 | -6/Garrison | Triggered checkpoint 11181 | -6/Garrison | Expanded RIF knowledge: Autooverride 11259 | -6/Garrison | Triggered checkpoint 11264 | -6/Garrison | Triggered checkpoint 11333 | -6/Garrison | Lost 4 parts (1p3w) 11390 | -6/Garrison | Triggered checkpoint 11417 | -6/Garrison | Destroyed 7 combat bots 11487 | -6/Garrison | Triggered checkpoint 11502 | -6/Garrison | Garrison Relay disabled 11541 | -6/Garrison | Discovered new exit (range 10) 11595 | -6/Garrison | Triggered checkpoint 11619 | -6/Garrison | Garrison Relay disabled 11687 | -6/Garrison | Discovered new exit (range 10) 12065 | -6/Garrison | Triggered checkpoint 12093 | -6/Garrison | Garrison Relay disabled 12169 | -6/Garrison | Discovered new exit (range 14) 12268 | -6/Garrison | Entered Factory 12268 | -5/Factory | Accompanied by 7 allies 12268 | -5/Factory | Evolved 2 slots: Power x1, Utility x1 12565 | -5/Factory | Discovered new exit (range 25) 12657 | -5/Factory | Identified exit to Garrison 12657 | -5/Factory | Entered Garrison 12657 | -5/Garrison | Accompanied by 4 allies 12715 | -5/Garrison | Triggered checkpoint 12730 | -5/Garrison | Garrison Relay disabled 12771 | -5/Garrison | Spotted B-75 Beast 12823 | -5/Garrison | Triggered checkpoint 12859 | -5/Garrison | Triggered checkpoint 12867 | -5/Garrison | Lost 5 allies 12969 | -5/Garrison | Discovered new exit (range 12) 12976 | -5/Garrison | Expanded RIF knowledge: Program Shield 13003 | -5/Garrison | Triggered checkpoint 13025 | -5/Garrison | Garrison Relay disabled 13166 | -5/Garrison | Discovered new exit (range 12) 13179 | -5/Garrison | Spotted B-75 Beast 13222 | -5/Garrison | Lost 3 parts (1u2w) 13245 | -5/Garrison | Destroyed B-75 Beast 13258 | -5/Garrison | Found Relay Coupler [Proto] 13261 | -5/Garrison | Found Relay Coupler [Proto] 13264 | -5/Garrison | Found Relay Coupler [Proto] 13266 | -5/Garrison | Found Relay Coupler [Proto] 13355 | -5/Garrison | Discovered new exit (range 12) 13375 | -5/Garrison | Triggered checkpoint 13402 | -5/Garrison | Entered Extension 13437 | -5/Extension | Rescued a captive Derelict 13440 | -5/Extension | Rescued a captive Derelict 13569 | -5/Extension | Build established: Botlord-Construct 13702 | -5/Extension | First assault squad dispatched 13813 | -5/Extension | Rescued a captive Derelict 13831 | -5/Extension | Rescued a captive Derelict 13832 | -5/Extension | Rescued a captive Derelict 13948 | -5/Extension | Lost 9 allies 13952 | -5/Extension | Build established: Botlord-Mutant 14308 | -5/Extension | Spotted B-75 Beast 14315 | -5/Extension | Spotted B-75 Beast 14335 | -5/Extension | Discovered new exit (range 3) 14338 | -5/Extension | Entered Factory 14338 | -4/Factory | Evolved 2 slots: Propulsion x2 14347 | -4/Factory | Lost 3 allies 15279 | -4/Factory | Identified exit to Garrison 15279 | -4/Factory | Entered Garrison 15489 | -4/Garrison | Triggered checkpoint 15529 | -4/Garrison | Garrison Relay disabled 15931 | -4/Garrison | Triggered checkpoint 15931 | -4/Garrison | Spotted B-86 Titan 16154 | -4/Garrison | Self-destructed Last Messages --------------- 16093_ Q>KBEQ5 3EXZ3ZV#S>|R5FZSC711TH 16093_ Great Axe+ follow-up attack on P-70 Sage. 16093_ P-70 Sage destroyed. 16104_ C-30 ARC bursts open, deploying its payload. 16104_ H-77 Assassin unfolds itself. 16104_ Penetrated by Slug. 16107_ Detecting nearby RIF Installer. 16110_ Slug penetrates Wall. 16110_ Penetrated by Slug. 16113_ Antimatter-Quantum Reactor destroyed. 16113_ Antimatter-Quantum Reactor core remains intact and functional. 16114_ System corrupted: IFF burst signal emitted. 16116_ Penetrated by Slug. 16153_ Slug penetrates RIF Installer. 16153_ Penetrated by Slug. 16153_ RIF Installer disabled. [Achievement: Tester] Map ----- +----------------------------------------------------+ | # ######"###"!#???????????# #????####????????? | | # #?????????"%#?#####?????#[#???## ##???????? | | # #?????????" #?# #?????#%#???# ##??????? | | # #?????????" ### #######|##### #??????? | | # #?????????#%%[ * !% " #????????? | | # #????????##"############! #### # #??????? | | # ?????????# !#?????????#""!!"#?#######??????? | | # ?????????## #?????????#######??????????????? | | # ??????????#[#??????????????????????????????? | | # ??#####???#%#??????????????????????????????? | | ?##"#"#####*#??????????????????????????????? | | + =*=%[#??????????????????????????????? | | "#"# #######??????????????????????????????? | | # ???# #????????????????????????????????????? | | # #### #????????????????????????????????????? | | ![%%#????????????????????????????????????? | | ####????????????????????????????????????? | | ###?????????????????????????????????????? | | " #?????????????????????????????????????? | | # ### #?????????????????????????????????????? | | # ??# #?????????????????????????????????????? | | ???# #?????????????????????????????????????? | | ???# #?????????????????????????????????????? | | ????# #??????????????#######????????????????? | | # ??### ################ """"#????????????????? | | #???# @ #????????????????? | | ????### ############# ##^""""#????????????????? | | ??????# #???????????# ########????????????????? | | ??????# #???????????# #???????????????????????? | | #?????#[#???????????# #???????????????????????? | | # ###%#####################?????????????????? | | # !*%= ????????????????? | | # =! " ????????????????? | | # "%" ????????????????? | | ##############+###### ###????????????????????? | | ?????????????# #??????????????????????????????? | | ?????????????# #??????????????????????????????? | | ?????????????###??????????????????????????????? | | ??????????????????????????????????????????????? | | ??????????????????????????????????????????????? | | ??????????????????????????????????????????????? | | ??????????????????????????????????????????????? | | ??????????????????????????????????????????????? | | ??????????????????????????????????????????????? | | ??????????????????????????????????????????????? | | ??????????????????????????????????????????????? | | ??????????????????????????????????????????????? | | ??????????????????????????????????????????????? | | ??????????????????????????????????????????????? | | ??????????????????????????????????????????????? | +----------------------------------------------------+ Best States ------------- Heat Dissipation 98 Coolant Potential 80 Energy Generation 48 Energy Capacity 724 Matter Stores 300 Matter Capacity 300 Sight Range 16 Terrain Scan Density 10 Resistance: TH 30 Propulsion Shielding 33 Phase Shifting 10 Evasion (%) 60 Targeting Accuracy 8 Core Analysis 6 Recoil Reduction 4 Offensive Hacking 10 Relay Coupler Types 3 Relay Coupler Value 60 Item Schematics ----------------- None Robot Schematics ------------------ M-13 Machinist | -9/Storage | Hacked Fabricated ------------ M-13 Machinist | x1 | -7/Factory Repaired ---------- Lgt. Treads | 66% | -10/Materials Lgt. Cannon | 38% | -9/Materials Studied --------- Remote Datajack | -7/Factory | Hacked Great Axe | -4/Factory | Hacked Imp. Remote Datajack | -4/Factory | Hacked Alien Tech Used ----------------- None Achievements -------------- Error 47 Join The Dark Side Mindtrick Tester You Will Be Upgraded Challenges ------------ None Game ------ Seed CompanionLegFrame Manual? 0 Play Time 03:05:13 Cumulative 99.1 hours Start 2026.03.14 @ 23:17:51 End 2026.04.02 @ 19:29:00 Sessions 6 Manual Loads 0 Difficulty Rogue Special Mode None Game No. 73 Rogue 73 Adventurer 0 Explorer 0 Win Type - Total 1 Types 0/0/0/1/0/0/0/0/0/0 Lore% 45 Gallery% 50 Achievement% 47 Wizard Run 0 Options --------- Layout 2 ASCII 0 Keyboard 0 Movement Mouse Keybinds 0 Fullscreen 1 Font 48/Smallcaps Map View 50x44 Zoom Use 0% Tactical HUD 1 Map Filters NONE Filters NONE Steam 1 RUN: 11f86db7-50bb-4474-8887-42c27ceaa13b